Cogmind - Beta 13 @@@ ROGUE MODE // 2024.03.07 @ 22:37:22 Player: K.Ioz Result: Destroyed by 63-DTN(R) with Subdweller Machine Gun Performance ------------- Evolutions (0) 0 Regions Visited (2) 400 Robots Destroyed (10) 50 Value Destroyed (333) 333 Prototype IDs (3) 60 Alien Tech Used (0) 0 Bonus (0) 0 TOTAL SCORE: 843 Bonus ------- None Cogmind --------- Core Integrity 0/250 Matter 270/300 Energy 106/200 System Corruption 0% Temperature Cool (0) Movement Rolling (110) Location -10/Subcaves Parts ------- > --- POWER (1) -------- Subdweller Power Source > --- PROPULSION (2) --- Subdweller Monowheel > --- UTILITY (2) ------ (None) > --- WEAPON (2) ------- Medium Laser Beam Cannon > --- INVENTORY (5) ---- (None) Peak State ------------ > --- POWER ------------ Ion Engine > --- PROPULSION ------- Aluminum Leg Aluminum Leg > --- UTILITY ---------- Scrap Shield > --- WEAPON ----------- Medium Laser Light EM Pulse Cannon > --- INVENTORY -------- Ion Engine Medium Laser Beam Cannon [Rating: 10] Favorites ----------- Power Ion Engine Engine Ion Engine Propulsion Aluminum Leg Leg Aluminum Leg Wheel Subdweller Monowheel Utility Heat Sink Device Heat Sink Protection Power Shielding Weapon Medium Laser Energy Gun Medium Laser Energy Cannon Light EM Pulse Cannon Ballistic Gun Light Assault Rifle Build | -11 -10 -10 ------- Run | Yrd Mat Sub Slots Evolved . | . . . Power . | . . . Propulsion . | . . . Utility . | . . . Weapon . | . . . Parts Attached 16 | 5 4 7 Power 2 | 1 . 1 Engine 2 | 1 . 1 Core . | . . . Reactor . | . . . Propulsion 5 | 2 1 2 Treads . | . . . Leg 4 | 2 1 1 Wheel 1 | . . 1 Hover . | . . . Flight . | . . . Utility 4 | . 2 2 Device 1 | . 1 . Storage . | . . . Processor . | . . . Hackware . | . . . Protection 3 | . 1 2 Artifact . | . . . Weapon 5 | 2 1 2 Energy Gun 2 | 1 . 1 Energy Cannon 2 | . 1 1 Ballistic Gun 1 | 1 . . Ballistic Cannon . | . . . Launcher . | . . . Special Weapon . | . . . Impact Weapon . | . . . Slashing Weapon . | . . . Piercing Weapon . | . . . Special Melee Weapon . | . . . Unidentified Prototypes . | . . . Parts Lost 6 | . . 6 Power 1 | . . 1 Propulsion 2 | . . 2 Utility 1 | . . 1 Weapon 2 | . . 2 Highest Loss Streak 6 | . . 6 To Critical Strikes . | . . . Average Slot Usage (%) 81 | . 82 76 Engine 14 | . 14 14 Leg 27 | . 27 25 Device 6 | . 7 2 Protection 3 | . 3 4 Energy Gun 14 | . 14 15 Energy Cannon 13 | . 13 12 Naked Turns . | . . . Heaviest Build 29 | 8 13 29 Greatest Support 25 | 20 20 25 Greatest Overweight (x) 2 | . 1 2 Average Overweight (x) . | . . . Largest Inventory Capacity 5 | 5 5 5 Average Capacity 5 | 5 5 5 Most Carried 5 | 5 5 5 Average Carried 4 | 2 4 3 Final Capacity 5 | 5 5 5 Final Carried 5 | 5 5 . Class Distribution -------------------- 100% | Mutant Dominant Class ---------------- Mutant | -10/Materials Mutant | -10/Subcaves Resources | -11 -10 -10 ----------- Run | Yrd Mat Sub Matter Collected 330 | 218 92 20 Remotely . | . . . Salvage Created 395 | . 202 193 Parts 29 | . 13 16 Haulers Intercepted . | . . . Recyclers Shooed . | . . . Parts Field Recycled . | . . . Retrieved Matter . | . . . Parts Self-Destructed . | . . . Prevented . | . . . Kills | -11 -10 -10 ------- Run | Yrd Mat Sub Combat Hostiles Destroyed 7 | . 3 4 Guns 4 | . 1 3 Cannons 3 | . 2 1 Classes Destroyed 4 | . 3 1 Operator 1 | . 1 . Watcher 2 | . 2 . Grunt 3 | . 3 . Subdweller 4 | . . 4 Best Kill Streak 3 | . 2 3 Combat Bots Only 3 | . 2 3 Max Kills in Single Turn 1 | . 1 1 Gunslinging . | . . . Exploded . | . . . Melee . | . . . Uniques/NPCs Destroyed . | . . . Combat | -11 -10 -10 -------- Run | Yrd Mat Sub Hostile Shots Fired 66 | . 10 56 Missed 18 | . 3 15 Damage Taken 1041 | . 85 956 Core 269 | . 12 257 Absorbed by Shields . | . . . Core Remaining (%) 100 | 100 . . Volleys Fired 31 | . 14 17 Largest 2 | . 2 2 Hottest 110 | . 106 110 Shots Fired 62 | . 28 34 Gun 36 | . 14 22 Cannon 26 | . 14 12 Launcher . | . . . Special . | . . . Kinetic . | . . . Thermal 38 | . 14 24 Explosive . | . . . Electromagnetic 24 | . 14 10 Robot Hit Streak 12 | . 3 12 Robot Miss Streak 7 | . 7 1 Penetration Max . | . . . Secondary Targets . | . . . Shots Hit Robots 41 | . 12 29 Core Hits 16 | . 8 8 Critical Kills . | . . . Critical Parts Destroyed . | . . . Critical Strikes 1 | . 1 . Corrupt 1 | . 1 . Melee Attacks . | . . . Impact . | . . . Slashing . | . . . Piercing . | . . . Sneak Attacks . | . . . Combat Hostiles . | . . . Follow-up Attacks . | . . . Damage Inflicted 734 | . 286 448 Guns 286 | . 39 247 Cannons 448 | . 247 201 Explosions . | . . . Melee . | . . . Ramming . | . . . Kinetic . | . . . Thermal 320 | . 39 281 Explosive . | . . . Electromagnetic 414 | . 247 167 Impact . | . . . Slashing . | . . . Piercing . | . . . Highest Corruption . | . . . Average Corruption . | . . . Corruption Purged . | . . . Corruption Blocked . | . . . Overload Shots . | . . . Overflow Damage 17 | . 17 . Projectiles 17 | . 17 . Explosions . | . . . Melee . | . . . Knockbacks . | . . . Impact . | . . . Kinetic . | . . . Secondary . | . . . Self-Inflicted Damage . | . . . Shots . | . . . Rammed . | . . . Targets Rammed . | . . . Kicked . | . . . Crushed . | . . . Highest Temperature 348 | . 348 255 Average Temperature 102 | . 114 65 Received Heat Transfer 526 | . 45 481 Effects 2 | . 1 1 Energy Bleed 1 | . . 1 Matter Decay 1 | . 1 . Siege Activations . | . . . Robots Corrupted . | . . . Combat Hostiles . | . . . Parts Fried 4 | . 4 . Impact Corruptions . | . . . Robots Melted . | . . . Combat Hostiles . | . . . Parts Melted . | . . . Heat Transferred 925 | . 111 814 Parts Sabotaged . | . . . Parts Stolen . | . . . Parts Stripped . | . . . Power Chain Reactions . | . . . Alert | -11 -10 -10 ------- Run | Yrd Mat Sub Peak Influence 174 | . 174 . Initial . | . . . Average 35 | . 39 . Maximum Alert Level . | . . . Low Security (%) 100 | 100 100 . Level 1 . | . . . Level 2 . | . . . Level 3 . | . . . Level 4 . | . . . Level 5 . | . . . High Security . | . . . Max Security . | . . . Squads Dispatched 1 | . 1 . Investigation . | . . . Extermination . | . . . Reinforcement 1 | . 1 . Assault . | . . . Garrison . | . . . Intercept . | . . . Searches Triggered . | . . . Construction Impeded . | . . . Haulers Reinforced . | . . . Active Scanning Responses . | . . . Cargo Convoy Interrupts . | . . . Stealth | -11 -10 -10 --------- Run | Yrd Mat Sub Distress Signals . | . . . Communications Jammed . | . . . Distress Signals . | . . . Times Spotted 18 | . 9 9 Peak Tracking Total 7 | . 3 7 Tactical Retreats . | . . . Traps | -11 -10 -10 ------- Run | Yrd Mat Sub Traps Triggered . | . . . Indirectly . | . . . Trap Hack Attempts . | . . . Triggered . | . . . Disarmed . | . . . Reprogrammed . | . . . Reused . | . . . Traps Extracted . | . . . Installed . | . . . Triggered . | . . . Machines | -11 -10 -10 ---------- Run | Yrd Mat Sub Machines Disabled 1 | . 1 . Max in Single Turn 1 | . 1 . Machines Repaired . | . . . Machines Dismantled . | . . . Machines Sabotaged . | . . . Overloaded Fab Kills . | . . . Hacking | -11 -10 -10 --------- Run | Yrd Mat Sub Machines Accessed 4 | . 4 . Terminals 4 | . 4 . Fabricators . | . . . Repair Stations . | . . . Recycling Units . | . . . Scanalyzers . | . . . Garrison Access . | . . . Total Hacks 7 | . 7 . Successful 2 | . 2 . Failed 5 | . 5 . Catastrophic . | . . . Database Lockouts . | . . . Manual 4 | . 4 . Terminals 7 | . 7 . Fabricators . | . . . Repair Stations . | . . . Recycling Units . | . . . Scanalyzers . | . . . Garrison Access . | . . . Terminal Hacks 2 | . 2 . Prototype ID Bank 1 | . 1 . Locate Traps 1 | . 1 . Fabricator Hacks . | . . . Repair Station Hacks . | . . . Recycling Unit Hacks . | . . . Scanalyzer . | . . . Garrison Access Hacks . | . . . Unauthorized Hacks . | . . . Terminals . | . . . Fabricators . | . . . Repair Stations . | . . . Recycling Units . | . . . Scanalyzers . | . . . Garrison Access . | . . . Data Cores Recovered 1 | . 1 . Used 1 | . 1 . Hacking Detections 3 | . 3 . Full Trace Events . | . . . Feedback Events . | . . . Feedback Blocked . | . . . Robot Schematics Acquired . | . . . Robots Built . | . . . Authchips . | . . . Time . | . . . Total Robot Build Rating . | . . . Part Schematics Acquired . | . . . Parts Built . | . . . Authchips . | . . . Time . | . . . Total Part Build Rating . | . . . Parts Repaired . | . . . Time . | . . . Parts Recycled . | . . . Recycled Matter . | . . . Retrieved Matter . | . . . Retrieved Components . | . . . Parts Scanalyzed . | . . . Part Schematics Acquired . | . . . Parts Damaged . | . . . Bothacking | -11 -10 -10 ------------ Run | Yrd Mat Sub Used RIF Installer . | . . . Robots Hacked . | . . . Non-combat . | . . . Combat . | . . . Robot Hacks Applied . | . . . Relay Couplers Released . | . . . Fabnet Peak Effective % . | . . . Robots Rewired . | . . . Allies Hacked . | . . . Hacks Repelled . | . . . Allies | -11 -10 -10 -------- Run | Yrd Mat Sub Total Allies . | . . . Largest Group . | . . . Highest-Rated Group . | . . . Highest-Rated Ally . | . . . Total Orders . | . . . Ally Attacks . | . . . Total Damage . | . . . Kills . | . . . Allies Corrupted . | . . . Allies Melted . | . . . Intel | -11 -10 -10 ------- Run | Yrd Mat Sub Robot Analysis Total . | . . . Derelict Logs Recovered . | . . . Drone Launches . | . . . Drone Recoveries . | . . . Exploration | -11 -10 -10 ------------- Run | Yrd Mat Sub Turns Passed 863 | 73 642 148 Spaces Moved 596 | 59 475 62 Core 16 | 14 . 2 Treads . | . . . Legs 580 | 45 475 60 Wheels . | . . . Hover . | . . . Flight . | . . . Fastest Speed 50 | 50 120 120 Average Speed 120 | 103 120 135 Slowest Speed 190 | 120 190 190 Overloaded Moves . | . . . Propulsion Burnouts . | . . . Robots Hopped . | . . . Cave-ins Triggered . | . . . Exploration Rate (%) 27 | 4 69 8 Regions Visited 2 Branch Regions 1 Pre-discovered Areas . | . . . Known Exits Taken . | . . . Unknown Exits Taken 2 | 1 1 . Scrap Searched . | . . . Spaces Dug . | . . . Terrain Destroyed . | . . . Melee . | . . . Projectile . | . . . AOE . | . . . Terrain Rammed . | . . . Walls Destroyed . | . . . Machines Disabled . | . . . Actions | -11 -10 -10 --------- Run | Yrd Mat Sub Total 682 | 68 518 96 Wait 21 | . 20 1 Move 594 | 58 474 62 Hop . | . . . Pick Up 9 | 5 2 2 Fast Attach 11 | 5 4 2 Attach 5 | . . 5 Detach 1 | . . 1 Swap . | . . . Drop 10 | . 4 6 Fire 31 | . 14 17 Melee . | . . . Ram . | . . . Kick . | . . . Crush . | . . . Escape Stasis . | . . . Rewire . | . . . Trap . | . . . Miscellaneous . | . . . Route ------- -11/Scrapyard -10/Materials (discovered 4 exits: [*Mat x2] / [*Min] / [*Sub]) -10/Subcaves History --------- Turn | Location | Event 5 | -11/Scrapyard | Discovered new exit (range 16) 74 | -11/Scrapyard | Entered Materials 256 | -10/Materials | Discovered new exit (range 3) 307 | -10/Materials | Build established: Mutant 337 | -10/Materials | Discovered new exit (range 6) 442 | -10/Materials | Discovered new exit (range 5) 701 | -10/Materials | Discovered new exit (range 11) 716 | -10/Materials | Entered Subcaves 801 | -10/Subcaves | Ambushed by swarm of Subdwellers 824 | -10/Subcaves | Core integrity fell below 50% 851 | -10/Subcaves | Lost 4 allies 861 | -10/Subcaves | Core integrity fell below 20% 864 | -10/Subcaves | Destroyed by 63-DTN(R) with Subdweller Machine Gun Last Messages --------------- 00818_ EF-FCV(g) destroyed. 00820_ RI-Y5C(g) destroyed. 00821_ Dropped Aluminum Leg. 00821_ Acquired Carbon-fiber Leg. 00822_ Critical hit (Meltdown: +280). 00823_ Overheating: Energy bleed (-60). 00829_ 6H-MEQ(R) misfires. 00832_ 6H-MEQ(R) destroyed. 00835_ Lgt. EM Pulse Cannon destroyed. 00839_ HU-06I(R) destroyed. 00840_ RK-BM8(R) affixes Scrap Shield Fragment to Scrap Shield. 00845_ RK-BM8(R) destroyed. 00847_ IF-9G3(R) affixes Scrap Shield Fragment to Scrap Shield. 00848_ 5P-LJA(R) affixes Scrap Shield Fragment to Scrap Shield. 00848_ Aluminum Leg destroyed. 00851_ Carbon-fiber Leg destroyed. 00857_ Acquired Sub. Monowheel. 00857_ 5P-LJA(R) affixes Scrap Shield Fragment to Scrap Shield. 00858_ Ion Engine destroyed. 00858_ Med. Laser destroyed. Map ----- +----------------------------------------------------+ | ???????????????????????## ! ## # ^ ???? | | ??????????????????????## ##?????? ????? | | ?????????????????????##* ##?????????????? | | ???????????????????###&! ##????????????? | | ????????????????#### "%= #????????????? | | ????????????????#" """% #???????????? | | ????????????????# "" %## # ## ##???????????? | | ????????????????#"" #### #?###????????????? | | ????????????????## #?## ##????????????????? | | ????????????????## #???##?????????????????? | | ????????????????#"# ##??????????????????????? | | ???????????????# # ##???????????????????????? | | ???????????????####"" #???????????????????????? | | ?????????????????#"" ##???###?????????????????? | | ?????????????????## ##??# ##????????????????? | | ?????????????????## ### ##???????????????? | | ????????????????## ## ##???? ?????????? | | ????????????????# ### ??????????? | | ????????????????# ???????????? | | ????????????????# ???????????? | | ???????????????## ???????????? | | ???????????????# ### ????????????? | | ???????????????## ##???????#?????????? | | ????????????????# R #?????# ## ???????? | | ????????????????# RR! ##### ??????? | | ????????????????# @R [ ??????? | | ????????????????# ;###%%! ??????? | | ????????????????# #####%=* ### ??????? | | ????????????????##### # =* ##??? ????????? | | ???????????????????##=%* ##???? ?????????? | | ??????????????????## ![! #???????????????? | | ????????????????### ** #???????????????? | | ???????????????## =!%= ## #???????????????? | | ???????????????# !%*!###? #??????????????? | | ???????????????# ]! #??? #?????????????? | | ???????????????# ""#??? ???????????? | | ???????????????# %""#???? #??????????? | | ???????????????# #??? #??????????? | | ??????????????# %### #??? ## #?????????? | | ??????????????## ??# ?? ##?# ##?????????? | | ???????????????# ??# ??###????#??????????? | | ???????????????# ??? #??????????????????? | | ??????????????? ??? ##??????????????????? | | ??????????????? ??? ##???????????????????? | | ??????????????# ??? #????????????????????? | | ??????????????## ??? ????????????????????? | | ???????????????##?????? ? #???????????????????? | | ??????????????????????????????????????????????? | | ??????????????????????????????????????????????? | | ??????????????????????????????????????????????? | +----------------------------------------------------+ Best States ------------- Heat Dissipation 35 Energy Generation 15 Energy Capacity 250 Matter Stores 300 Matter Capacity 300 Sight Range 16 Terrain Scan Density 10 Armor Coverage 800 Power Shielding 33 Evasion (%) 55 Item Schematics ----------------- None Robot Schematics ------------------ None Fabricated ------------ Nothing Alien Tech Used ----------------- None Achievements -------------- None Challenges ------------ None Game ------ Seed ThrowingRecoilCompressor Manual? 0 Play Time 00:47:05 Cumulative 186.3 hours Start 2024.02.28 @ 00:00:22 End 2024.03.07 @ 22:37:22 Sessions 13 Manual Loads 0 Difficulty Rogue Special Mode None Game No. 139 Rogue 106 Adventurer 0 Explorer 33 Win Type - Total 4 Types 4/0/0/0/0/0/0/0/0 Lore% 55 Gallery% 62 Achievement% 58 Wizard Run 0 Options --------- Layout 0 ASCII 1 Keyboard 1 Movement Vi Keybinds 0 Fullscreen 1 Font 12/Proggy Map View 41x27 Zoom Use 46% Tactical HUD 1 Map Filters NONE Filters LOW_CONTRAST(47,30,31) Steam 1 RUN: 877d99b9-b547-4842-90b8-abe1a6393bd7